[Event "*** Titled Tuesday Blitz"]
[Site "Chess.com"]
[Date "2021.03.02"]
[Round "5"]
[White "NikolaN98"]
[Black "The_filthy"]
[Result "1-0"]
[WhiteElo "2520"]
[BlackElo "2334"]
[TimeControl "180+1"]
[EndTime "10:55:25 PST"]
[Termination "NikolaN98 won on time"]

1. d3 {[%clk 0:02:26.2]} 1... e5 {[%clk 0:02:53.3]} 2. e4 {[%clk 0:02:22.8]}
2... Nc6 {[%clk 0:02:53.2]} 3. Be2 {[%clk 0:02:11.7]} 3... Nf6 {[%clk
0:02:52.7]} 4. c4 {[%clk 0:02:09.6]} 4... Bc5 {[%clk 0:02:47]} 5. Nc3 {[%clk
0:02:06.2]} 5... h6 {[%clk 0:02:42.5]} 6. f4 {[%clk 0:01:58]} 6... d6 {[%clk
0:02:40.4]} 7. f5 {[%clk 0:01:33.2]} 7... a6 {[%clk 0:02:38.3]} 8. Nf3 {[%clk
0:01:32.3]} 8... Nd4 {[%clk 0:02:36.2]} 9. Nxd4 {[%clk 0:01:20.6]} 9... Bxd4
{[%clk 0:02:35]} 10. Bf3 {[%clk 0:01:14.4]} 10... c6 {[%clk 0:02:30.5]} 11. Ne2
{[%clk 0:01:14.2]} 11... Ba7 {[%clk 0:02:29]} 12. b3 {[%clk 0:00:55.7]} 12... d5
{[%clk 0:02:26.7]} 13. Qd2 {[%clk 0:00:48.4]} 13... O-O {[%clk 0:02:07]} 14. g4
{[%clk 0:00:40]} 14... Nxg4 {[%clk 0:02:02.5]} 15. h4 {[%clk 0:00:34.4]} 15...
Bf2+ {[%clk 0:01:42]} 16. Kf1 {[%clk 0:00:33.8]} 16... Be3 {[%clk 0:01:38]} 17.
Qe1 {[%clk 0:00:29.8]} 17... Bxc1 {[%clk 0:01:34.3]} 18. Qxc1 {[%clk 0:00:27.9]}
18... Nf6 {[%clk 0:01:33.8]} 19. Rg1 {[%clk 0:00:26.7]} 19... Kh8 {[%clk
0:01:33.5]} 20. Qe3 {[%clk 0:00:22.7]} 20... b5 {[%clk 0:01:12.2]} 21. c5 {[%clk
0:00:20.2]} 21... d4 {[%clk 0:01:09.6]} 22. Qd2 {[%clk 0:00:19.8]} 22... a5
{[%clk 0:01:08.4]} 23. Kf2 {[%clk 0:00:20]} 23... Nd7 {[%clk 0:00:46.5]} 24. Rg3
{[%clk 0:00:19.2]} 24... Rg8 {[%clk 0:00:28]} 25. Rag1 {[%clk 0:00:18.9]} 25...
Qf6 {[%clk 0:00:23.5]} 26. Qc1 {[%clk 0:00:17.5]} 26... a4 {[%clk 0:00:21.6]}
27. b4 {[%clk 0:00:16.9]} 27... Nf8 {[%clk 0:00:21.1]} 28. Rg5 {[%clk
0:00:16.4]} 28... Nh7 {[%clk 0:00:20.7]} 29. Ng3 {[%clk 0:00:12.2]} 29... hxg5
{[%clk 0:00:15.8]} 30. Nh5 {[%clk 0:00:07.9]} 30... Qe7 {[%clk 0:00:09.5]} 31.
hxg5 {[%clk 0:00:08.1]} 31... g6 {[%clk 0:00:09.7]} 32. f6 {[%clk 0:00:08.3]}
32... Qe6 {[%clk 0:00:06.2]} 33. Ng3 {[%clk 0:00:08.3]} 33... Bd7 {[%clk
0:00:03.4]} 34. Rh1 {[%clk 0:00:08.6]} 34... Rgf8 {[%clk 0:00:03.8]} 35. Rh2
{[%clk 0:00:08.2]} 35... Kg8 {[%clk 0:00:04.2]} 36. Qh1 {[%clk 0:00:07.8]} 36...
Rab8 {[%clk 0:00:03]} 37. Rxh7 {[%clk 0:00:07.6]} 1-0

[Event "*** Titled Tuesday Blitz"]
[Site "Chess.com"]
[Date "2021.03.02"]
[Round "5"]
[White "KaterynaLagno"]
[Black "jens1102"]
[Result "0-1"]
[WhiteElo "2595"]
[BlackElo "2427"]
[TimeControl "180+1"]
[EndTime "10:55:26 PST"]
[Termination "jens1102 won by checkmate"]

1. e4 {[%clk 0:03:00.9]} 1... e6 {[%clk 0:02:57.9]} 2. d4 {[%clk 0:03:00.4]}
2... d5 {[%clk 0:02:58.8]} 3. Nc3 {[%clk 0:02:59.7]} 3... Bb4 {[%clk 0:02:59.1]}
4. exd5 {[%clk 0:02:59]} 4... exd5 {[%clk 0:02:58.3]} 5. Bd3 {[%clk 0:02:59.7]}
5... Nc6 {[%clk 0:02:58.1]} 6. Ne2 {[%clk 0:02:59.6]} 6... Nge7 {[%clk
0:02:57.4]} 7. O-O {[%clk 0:02:59.6]} 7... Bf5 {[%clk 0:02:57.7]} 8. Ng3 {[%clk
0:02:55.7]} 8... Bg6 {[%clk 0:02:56.2]} 9. Nh5 {[%clk 0:02:51.2]} 9... O-O
{[%clk 0:02:36.6]} 10. a3 {[%clk 0:02:46.7]} 10... Bd6 {[%clk 0:02:34.3]} 11.
Nb5 {[%clk 0:02:42.9]} 11... Nf5 {[%clk 0:02:08.6]} 12. Qg4 {[%clk 0:02:36.9]}
12... Bxh5 {[%clk 0:01:51]} 13. Qxh5 {[%clk 0:02:36.2]} 13... g6 {[%clk
0:01:51.5]} 14. Qg4 {[%clk 0:02:35]} 14... h5 {[%clk 0:01:50.8]} 15. Qh3 {[%clk
0:02:10.8]} 15... Ncxd4 {[%clk 0:01:41.4]} 16. Nxd6 {[%clk 0:02:06]} 16... Qxd6
{[%clk 0:01:42.3]} 17. c3 {[%clk 0:02:04.9]} 17... Nb3 {[%clk 0:01:40.8]} 18.
Bxf5 {[%clk 0:02:01.3]} 18... Nxa1 {[%clk 0:01:31.8]} 19. Bh6 {[%clk 0:01:46.5]}
19... gxf5 {[%clk 0:01:08.8]} 20. Bxf8 {[%clk 0:01:45.9]} 20... Kxf8 {[%clk
0:01:03.4]} 21. Rxa1 {[%clk 0:01:46.8]} 21... Qg6 {[%clk 0:00:53.1]} 22. Qe3
{[%clk 0:01:42.3]} 22... Qe6 {[%clk 0:00:48]} 23. Qc5+ {[%clk 0:01:36.8]} 23...
Qd6 {[%clk 0:00:46.8]} 24. Qd4 {[%clk 0:01:33]} 24... Ke7 {[%clk 0:00:40.3]} 25.
Re1+ {[%clk 0:01:31.9]} 25... Kd7 {[%clk 0:00:39.8]} 26. Qg7 {[%clk 0:01:24.4]}
26... Qg6 {[%clk 0:00:38.5]} 27. Qd4 {[%clk 0:01:20.2]} 27... Qd6 {[%clk
0:00:32.6]} 28. Re5 {[%clk 0:01:19.9]} 28... Re8 {[%clk 0:00:30.8]} 29. Rxe8
{[%clk 0:01:19.6]} 29... Kxe8 {[%clk 0:00:31.7]} 30. Qh8+ {[%clk 0:01:19.1]}
30... Ke7 {[%clk 0:00:30.6]} 31. Qxh5 {[%clk 0:01:20]} 31... Qe6 {[%clk
0:00:28.7]} 32. Qg5+ {[%clk 0:01:17.6]} 32... Kd7 {[%clk 0:00:28.4]} 33. Qd2
{[%clk 0:01:16.6]} 33... Qe4 {[%clk 0:00:27]} 34. Qd1 {[%clk 0:01:09.5]} 34...
f4 {[%clk 0:00:25.4]} 35. h3 {[%clk 0:01:08.2]} 35... f5 {[%clk 0:00:25.3]} 36.
Kh2 {[%clk 0:01:06.2]} 36... c5 {[%clk 0:00:25.1]} 37. Qh5 {[%clk 0:01:03.1]}
37... d4 {[%clk 0:00:21.7]} 38. cxd4 {[%clk 0:01:01.4]} 38... cxd4 {[%clk
0:00:22.6]} 39. Qf7+ {[%clk 0:01:01.8]} 39... Kd6 {[%clk 0:00:20.7]} 40. Qf6+
{[%clk 0:00:56.3]} 40... Kd5 {[%clk 0:00:19.9]} 41. Qd8+ {[%clk 0:00:55.7]}
41... Kc4 {[%clk 0:00:19]} 42. h4 {[%clk 0:00:53.3]} 42... Kd3 {[%clk
0:00:18.3]} 43. h5 {[%clk 0:00:52.3]} 43... Ke2 {[%clk 0:00:18.5]} 44. h6 {[%clk
0:00:40.5]} 44... Kxf2 {[%clk 0:00:18.2]} 45. Qh4+ {[%clk 0:00:36.2]} 45... Kf1
{[%clk 0:00:18.6]} 46. Qg5 {[%clk 0:00:36.8]} 46... Qe3 {[%clk 0:00:09.2]} 47.
Qxf5 {[%clk 0:00:28.8]} 47... Qg3+ {[%clk 0:00:08.9]} 48. Kh1 {[%clk 0:00:27.6]}
48... Qxg2# {[%clk 0:00:09.8]} 0-1

[Event "*** Titled Tuesday Blitz"]
[Site "Chess.com"]
[Date "2021.03.02"]
[Round "5"]
[White "NiranjanNavalgund"]
[Black "ellennilssen"]
[Result "1-0"]
[WhiteElo "2430"]
[BlackElo "2263"]
[TimeControl "180+1"]
[EndTime "10:55:27 PST"]
[Termination "NiranjanNavalgund won on time"]

1. d4 {[%clk 0:02:33.6]} 1... Nf6 {[%clk 0:02:58.1]} 2. c4 {[%clk 0:02:32.1]}
2... c5 {[%clk 0:02:58.6]} 3. d5 {[%clk 0:02:31.9]} 3... e6 {[%clk 0:02:58.9]}
4. Nc3 {[%clk 0:02:31.7]} 4... exd5 {[%clk 0:02:57.1]} 5. cxd5 {[%clk
0:02:32.6]} 5... d6 {[%clk 0:02:58]} 6. Nf3 {[%clk 0:02:33]} 6... g6 {[%clk
0:02:58.6]} 7. Bf4 {[%clk 0:02:32.8]} 7... Bg7 {[%clk 0:02:58.6]} 8. e3 {[%clk
0:02:31.3]} 8... O-O {[%clk 0:02:58.3]} 9. h3 {[%clk 0:02:30.2]} 9... a6 {[%clk
0:02:46.6]} 10. a4 {[%clk 0:02:29.3]} 10... Bf5 {[%clk 0:02:46.2]} 11. Be2
{[%clk 0:02:25.2]} 11... Re8 {[%clk 0:02:45.8]} 12. O-O {[%clk 0:02:24.7]} 12...
Ne4 {[%clk 0:02:44.4]} 13. Nxe4 {[%clk 0:02:24.6]} 13... Bxe4 {[%clk 0:02:43.8]}
14. Qb3 {[%clk 0:02:24.4]} 14... Qc7 {[%clk 0:02:28.7]} 15. Nd2 {[%clk
0:02:23.4]} 15... Nd7 {[%clk 0:02:20.3]} 16. f3 {[%clk 0:02:09.9]} 16... c4
{[%clk 0:02:00.3]} 17. Qxc4 {[%clk 0:02:03.2]} 17... Qxc4 {[%clk 0:01:50.5]} 18.
Bxc4 {[%clk 0:02:04.1]} 18... Bc2 {[%clk 0:01:28.1]} 19. e4 {[%clk 0:01:46.8]}
19... Ne5 {[%clk 0:01:12.7]} 20. Be2 {[%clk 0:01:35.7]} 20... Rac8 {[%clk
0:01:03.5]} 21. Rfc1 {[%clk 0:01:35]} 21... Red8 {[%clk 0:00:35.6]} 22. Be3
{[%clk 0:01:13.4]} 22... Nd3 {[%clk 0:00:33.9]} 23. Rxc2 {[%clk 0:01:12.6]}
23... Rxc2 {[%clk 0:00:31.4]} 24. Bxd3 {[%clk 0:01:12.7]} 24... Rxb2 {[%clk
0:00:32.3]} 25. Rc1 {[%clk 0:01:10.4]} 25... Ra2 {[%clk 0:00:31.2]} 26. Nc4
{[%clk 0:01:01.6]} 26... Rxa4 {[%clk 0:00:27.7]} 27. Bb6 {[%clk 0:01:01]} 27...
Rc8 {[%clk 0:00:26.9]} 28. Rc2 {[%clk 0:00:50.6]} 28... Rb4 {[%clk 0:00:17.8]}
29. Kf1 {[%clk 0:00:48.3]} 29... Rb3 {[%clk 0:00:15.7]} 30. Ke2 {[%clk
0:00:47.7]} 30... Bf6 {[%clk 0:00:09.5]} 31. Be3 {[%clk 0:00:44.5]} 31... b5
{[%clk 0:00:08.9]} 32. Nxd6 {[%clk 0:00:44.5]} 32... Rxc2+ {[%clk 0:00:06.9]}
33. Bxc2 {[%clk 0:00:45.4]} 33... Rb2 {[%clk 0:00:07.6]} 34. Kd1 {[%clk
0:00:45.5]} 34... a5 {[%clk 0:00:07]} 35. Bc1 {[%clk 0:00:44.9]} 35... Rb4
{[%clk 0:00:06.5]} 36. f4 {[%clk 0:00:42]} 36... a4 {[%clk 0:00:06.2]} 37. e5
{[%clk 0:00:42.3]} 37... Bh4 {[%clk 0:00:06.3]} 38. Ne4 {[%clk 0:00:38.8]} 38...
Be7 {[%clk 0:00:03.7]} 39. d6 {[%clk 0:00:38]} 39... Bd8 {[%clk 0:00:04.2]} 40.
Nc5 {[%clk 0:00:32.4]} 40... Rc4 {[%clk 0:00:03.1]} 41. Nb7 {[%clk 0:00:32]}
41... Ba5 {[%clk 0:00:02.9]} 42. Nxa5 {[%clk 0:00:31.7]} 42... Rc8 {[%clk
0:00:02.7]} 43. Nb7 {[%clk 0:00:31.3]} 43... b4 {[%clk 0:00:02.3]} 44. Bxa4
{[%clk 0:00:30.5]} 1-0

[Event "*** Titled Tuesday Blitz"]
[Site "Chess.com"]
[Date "2021.03.02"]
[Round "5"]
[White "anpospan"]
[Black "KonstantinB_1983"]
[Result "0-1"]
[WhiteElo "2375"]
[BlackElo "2550"]
[TimeControl "180+1"]
[EndTime "10:55:29 PST"]
[Termination "KonstantinB_1983 won by resignation"]

1. d4 {[%clk 0:03:00.9]} 1... Nf6 {[%clk 0:02:59]} 2. c4 {[%clk 0:03:00.6]} 2...
b6 {[%clk 0:02:59.4]} 3. Nf3 {[%clk 0:02:59.6]} 3... Bb7 {[%clk 0:02:59.4]} 4.
g3 {[%clk 0:02:59.7]} 4... e6 {[%clk 0:02:57.5]} 5. a3 {[%clk 0:02:59.4]} 5...
g6 {[%clk 0:02:57.4]} 6. Bg2 {[%clk 0:02:59.4]} 6... Bg7 {[%clk 0:02:57.8]} 7.
O-O {[%clk 0:02:59.3]} 7... O-O {[%clk 0:02:58.4]} 8. Nc3 {[%clk 0:02:59.2]}
8... Ne4 {[%clk 0:02:58.8]} 9. Nxe4 {[%clk 0:02:55.1]} 9... Bxe4 {[%clk
0:02:57.7]} 10. b4 {[%clk 0:02:52.9]} 10... d6 {[%clk 0:02:54]} 11. Bb2 {[%clk
0:02:52.4]} 11... Nd7 {[%clk 0:02:53.8]} 12. Qd2 {[%clk 0:02:49]} 12... Qe7
{[%clk 0:02:51.8]} 13. b5 {[%clk 0:02:44.3]} 13... Rfd8 {[%clk 0:02:35.3]} 14.
Rfd1 {[%clk 0:02:40.1]} 14... Nf6 {[%clk 0:02:27.1]} 15. d5 {[%clk 0:02:27.2]}
15... exd5 {[%clk 0:02:24.8]} 16. cxd5 {[%clk 0:02:26.4]} 16... Nxd5 {[%clk
0:02:13.2]} 17. Bxg7 {[%clk 0:02:24.8]} 17... Kxg7 {[%clk 0:02:12.7]} 18. Nd4
{[%clk 0:02:07.7]} 18... Nf6 {[%clk 0:01:50.1]} 19. Nc6 {[%clk 0:01:49.3]} 19...
Bxc6 {[%clk 0:01:48.5]} 20. Bxc6 {[%clk 0:01:46.9]} 20... Rab8 {[%clk
0:01:48.8]} 21. Qd4 {[%clk 0:01:44.5]} 21... Qe5 {[%clk 0:01:36.2]} 22. Qa4
{[%clk 0:01:40.2]} 22... Qxe2 {[%clk 0:01:29.2]} 23. Re1 {[%clk 0:01:33.9]}
23... Qh5 {[%clk 0:01:26]} 24. Re7 {[%clk 0:01:24.7]} 24... Ng4 {[%clk
0:01:19.5]} 25. h4 {[%clk 0:01:17.3]} 25... Qf5 {[%clk 0:01:17.6]} 26. Rf1
{[%clk 0:01:10.5]} 26... d5 {[%clk 0:01:06.6]} 27. Rxc7 {[%clk 0:01:04.2]} 27...
d4 {[%clk 0:01:05]} 28. Qxa7 {[%clk 0:01:00.1]} 28... Ne5 {[%clk 0:00:58]} 29.
Bg2 {[%clk 0:00:47.3]} 29... d3 {[%clk 0:00:56.9]} 30. Kh2 {[%clk 0:00:46.3]}
30... d2 {[%clk 0:00:55.3]} 31. Bh3 {[%clk 0:00:43.6]} 31... Qf3 {[%clk
0:00:47.5]} 32. Bg2 {[%clk 0:00:29.7]} 32... d1=Q {[%clk 0:00:42.8]} 33. Rxd1
{[%clk 0:00:29.3]} 33... Qxd1 {[%clk 0:00:42.1]} 34. Re7 {[%clk 0:00:28.6]}
34... Re8 {[%clk 0:00:36.1]} 35. Rxe5 {[%clk 0:00:25.4]} 35... Rxe5 {[%clk
0:00:34.6]} 36. Qxb8 {[%clk 0:00:25.4]} 36... Rxb5 {[%clk 0:00:34.8]} 37. Qe8
{[%clk 0:00:22.4]} 37... Rf5 {[%clk 0:00:27.6]} 38. Qe3 {[%clk 0:00:20.6]} 38...
Qd6 {[%clk 0:00:25.2]} 39. Qc3+ {[%clk 0:00:19.8]} 39... Qf6 {[%clk 0:00:23.5]}
40. Qxf6+ {[%clk 0:00:16.2]} 40... Kxf6 {[%clk 0:00:23.3]} 41. f4 {[%clk
0:00:17.1]} 41... Ra5 {[%clk 0:00:23.1]} 42. Kh3 {[%clk 0:00:16.7]} 42... Rxa3
{[%clk 0:00:23]} 43. Be4 {[%clk 0:00:16.6]} 43... h5 {[%clk 0:00:22.7]} 44. Bd5
{[%clk 0:00:15.4]} 44... b5 {[%clk 0:00:22.5]} 45. Bc6 {[%clk 0:00:15.1]} 45...
b4 {[%clk 0:00:22.4]} 46. Kg2 {[%clk 0:00:15.5]} 46... b3 {[%clk 0:00:22.1]} 47.
Bd5 {[%clk 0:00:13.6]} 47... b2 {[%clk 0:00:21.8]} 0-1

[Event "*** Titled Tuesday Blitz"]
[Site "Chess.com"]
[Date "2021.03.02"]
[Round "5"]
[White "SlavenPastar"]
[Black "Chernov_Mikhail"]
[Result "0-1"]
[WhiteElo "2571"]
[BlackElo "2352"]
[TimeControl "180+1"]
[EndTime "10:55:31 PST"]
[Termination "Chernov_Mikhail won on time"]

1. d4 {[%clk 0:03:00.9]} 1... d5 {[%clk 0:02:57.9]} 2. c4 {[%clk 0:02:58.6]}
2... c6 {[%clk 0:02:58]} 3. cxd5 {[%clk 0:02:58.1]} 3... cxd5 {[%clk 0:02:58.9]}
4. Nf3 {[%clk 0:02:58.5]} 4... Nc6 {[%clk 0:02:58.2]} 5. Nc3 {[%clk 0:02:59.1]}
5... Nf6 {[%clk 0:02:57.8]} 6. Bf4 {[%clk 0:02:59.3]} 6... e6 {[%clk 0:02:56.9]}
7. e3 {[%clk 0:02:59.7]} 7... a6 {[%clk 0:02:57.4]} 8. Bd3 {[%clk 0:02:59.5]}
8... Be7 {[%clk 0:02:55.1]} 9. O-O {[%clk 0:02:59.5]} 9... O-O {[%clk
0:02:54.8]} 10. Rc1 {[%clk 0:02:59.6]} 10... Nh5 {[%clk 0:02:53.1]} 11. Bb1
{[%clk 0:02:40.9]} 11... Nxf4 {[%clk 0:02:49.7]} 12. exf4 {[%clk 0:02:41.8]}
12... Bf6 {[%clk 0:02:33.4]} 13. Ne5 {[%clk 0:02:41.1]} 13... Bd7 {[%clk
0:02:22.6]} 14. Na4 {[%clk 0:02:35.9]} 14... g6 {[%clk 0:02:14.5]} 15. Nc5
{[%clk 0:02:35.3]} 15... Bxe5 {[%clk 0:02:07.7]} 16. fxe5 {[%clk 0:02:29.4]}
16... Ne7 {[%clk 0:01:50.2]} 17. Nxb7 {[%clk 0:02:20.7]} 17... Qb6 {[%clk
0:01:49.8]} 18. Nc5 {[%clk 0:02:18.8]} 18... Bb5 {[%clk 0:01:50.3]} 19. Re1
{[%clk 0:02:14.4]} 19... Rfc8 {[%clk 0:01:43.3]} 20. a4 {[%clk 0:02:09.7]} 20...
Be8 {[%clk 0:01:39.4]} 21. b3 {[%clk 0:02:05.3]} 21... Nc6 {[%clk 0:01:35.5]}
22. h4 {[%clk 0:02:01.2]} 22... h5 {[%clk 0:01:32.6]} 23. g4 {[%clk 0:01:53.2]}
23... hxg4 {[%clk 0:01:27.4]} 24. Qxg4 {[%clk 0:01:54.1]} 24... Rc7 {[%clk
0:01:25.7]} 25. h5 {[%clk 0:01:52.2]} 25... Nxd4 {[%clk 0:01:20.9]} 26. Qxd4
{[%clk 0:01:47.9]} 26... Rac8 {[%clk 0:01:16.2]} 27. b4 {[%clk 0:01:19.7]} 27...
a5 {[%clk 0:01:16.4]} 28. bxa5 {[%clk 0:01:08.7]} 28... Qa7 {[%clk 0:01:16.4]}
29. hxg6 {[%clk 0:00:56.6]} 29... Rxc5 {[%clk 0:01:09.8]} 30. gxf7+ {[%clk
0:00:55.1]} 30... Bxf7 {[%clk 0:01:10.7]} 31. Qg4+ {[%clk 0:00:36.8]} 31... Kf8
{[%clk 0:01:10.3]} 32. Qb4 {[%clk 0:00:33.7]} 32... Ke8 {[%clk 0:01:03.5]} 33.
Rxc5 {[%clk 0:00:28.7]} 33... Qxc5 {[%clk 0:01:03.2]} 34. Qb5+ {[%clk
0:00:25.8]} 34... Ke7 {[%clk 0:01:02.9]} 35. Bd3 {[%clk 0:00:20.9]} 35... Rg8+
{[%clk 0:00:47.4]} 36. Kf1 {[%clk 0:00:21]} 36... Qc3 {[%clk 0:00:39.6]} 37.
Qb7+ {[%clk 0:00:08.5]} 37... Kf8 {[%clk 0:00:38]} 38. Qb5 {[%clk 0:00:03.2]}
38... Bh5 {[%clk 0:00:22.2]} 39. Qb8+ {[%clk 0:00:02.8]} 39... Kg7 {[%clk
0:00:22.1]} 40. Qb7+ {[%clk 0:00:02.6]} 40... Kh8 {[%clk 0:00:22]} 41. Qe7
{[%clk 0:00:01.5]} 41... Qxd3+ {[%clk 0:00:21.6]} 0-1

[Event "*** Titled Tuesday Blitz"]
[Site "Chess.com"]
[Date "2021.03.02"]
[Round "5"]
[White "Arseniy_Nesterov"]
[Black "Lysiak_Poltorak"]
[Result "1-0"]
[WhiteElo "2798"]
[BlackElo "2472"]
[TimeControl "180+1"]
[EndTime "10:55:33 PST"]
[Termination "Arseniy_Nesterov won by resignation"]

1. d4 {[%clk 0:03:00.9]} 1... Nf6 {[%clk 0:02:59.7]} 2. c4 {[%clk 0:03:01.2]}
2... e6 {[%clk 0:02:59.7]} 3. Nf3 {[%clk 0:03:00.5]} 3... Bb4+ {[%clk
0:02:59.9]} 4. Bd2 {[%clk 0:03:00.4]} 4... Qe7 {[%clk 0:02:58.7]} 5. g3 {[%clk
0:03:00.3]} 5... Bxd2+ {[%clk 0:02:59.2]} 6. Qxd2 {[%clk 0:02:59.8]} 6... Nc6
{[%clk 0:02:58.6]} 7. Nc3 {[%clk 0:02:59.7]} 7... d5 {[%clk 0:02:57.7]} 8. Bg2
{[%clk 0:02:48.8]} 8... Ne4 {[%clk 0:02:36.7]} 9. Qc2 {[%clk 0:02:17.8]} 9...
Nxc3 {[%clk 0:02:34.2]} 10. Qxc3 {[%clk 0:02:17.6]} 10... Qb4 {[%clk 0:02:33.6]}
11. Rc1 {[%clk 0:02:08.4]} 11... Qxc3+ {[%clk 0:02:17.3]} 12. Rxc3 {[%clk
0:02:09.3]} 12... Ne7 {[%clk 0:02:03.2]} 13. cxd5 {[%clk 0:02:01.8]} 13... Nxd5
{[%clk 0:02:02.7]} 14. Rc1 {[%clk 0:01:59.7]} 14... c6 {[%clk 0:02:02.7]} 15.
Ne5 {[%clk 0:01:59.1]} 15... Ke7 {[%clk 0:01:52.9]} 16. Kd2 {[%clk 0:01:56.2]}
16... Bd7 {[%clk 0:01:52.3]} 17. e3 {[%clk 0:01:54.3]} 17... Rhd8 {[%clk
0:01:44.5]} 18. h4 {[%clk 0:01:39.6]} 18... Be8 {[%clk 0:01:44.1]} 19. a3 {[%clk
0:01:37.3]} 19... f6 {[%clk 0:01:43.7]} 20. Nd3 {[%clk 0:01:36.9]} 20... Rac8
{[%clk 0:01:38.9]} 21. h5 {[%clk 0:01:24.6]} 21... Bf7 {[%clk 0:01:37.1]} 22.
Be4 {[%clk 0:01:21.6]} 22... h6 {[%clk 0:01:33.7]} 23. g4 {[%clk 0:01:18.7]}
23... b6 {[%clk 0:01:27]} 24. Ke2 {[%clk 0:01:10.8]} 24... Kd6 {[%clk
0:01:25.7]} 25. Rc2 {[%clk 0:01:06]} 25... e5 {[%clk 0:00:46.3]} 26. dxe5+
{[%clk 0:01:03.2]} 26... fxe5 {[%clk 0:00:45.6]} 27. Rd1 {[%clk 0:01:01.4]}
27... Be6 {[%clk 0:00:29.1]} 28. f3 {[%clk 0:00:54.4]} 28... Rc7 {[%clk
0:00:11.3]} 29. Nb4 {[%clk 0:00:52.5]} 29... a5 {[%clk 0:00:06]} 30. Rxc6+
{[%clk 0:00:22.5]} 30... Rxc6 {[%clk 0:00:05.3]} 31. Nxd5 {[%clk 0:00:18.1]}
31... Kc5 {[%clk 0:00:01.7]} 32. b4+ {[%clk 0:00:08]} 32... axb4 {[%clk
0:00:02.6]} 33. axb4+ {[%clk 0:00:03.2]} 33... Kb5 {[%clk 0:00:03.2]} 34. Nc7+
{[%clk 0:00:03.9]} 34... Rxc7 {[%clk 0:00:03.3]} 35. Rxd8 {[%clk 0:00:04.8]}
35... Rc2+ {[%clk 0:00:03.8]} 36. Bxc2 {[%clk 0:00:04.5]} 1-0

[Event "*** Titled Tuesday Blitz"]
[Site "Chess.com"]
[Date "2021.03.02"]
[Round "5"]
[White "paulrusan"]
[Black "mamonika"]
[Result "1-0"]
[WhiteElo "2324"]
[BlackElo "2025"]
[TimeControl "180+1"]
[EndTime "10:55:33 PST"]
[Termination "paulrusan won on time"]

1. e4 {[%clk 0:02:59.7]} 1... c5 {[%clk 0:02:58]} 2. b4 {[%clk 0:02:58.9]} 2...
cxb4 {[%clk 0:02:51.8]} 3. Bb2 {[%clk 0:02:59.2]} 3... Nc6 {[%clk 0:02:45.1]} 4.
d4 {[%clk 0:02:59.1]} 4... Nf6 {[%clk 0:02:39]} 5. d5 {[%clk 0:02:57]} 5... Na5
{[%clk 0:02:29.9]} 6. e5 {[%clk 0:02:56.5]} 6... Ne4 {[%clk 0:02:26.5]} 7. Qd4
{[%clk 0:02:51.8]} 7... Nc3 {[%clk 0:02:23]} 8. Nxc3 {[%clk 0:02:48.7]} 8...
bxc3 {[%clk 0:02:21.7]} 9. Bxc3 {[%clk 0:02:49.2]} 9... Qb6 {[%clk 0:02:16.6]}
10. Nf3 {[%clk 0:02:40.7]} 10... e6 {[%clk 0:02:15.9]} 11. d6 {[%clk 0:02:34.6]}
11... Qxd4 {[%clk 0:01:54.8]} 12. Nxd4 {[%clk 0:02:33.9]} 12... Nc6 {[%clk
0:01:50.5]} 13. Nb5 {[%clk 0:02:30.7]} 13... Kd8 {[%clk 0:01:48.5]} 14. Bd3
{[%clk 0:02:19.3]} 14... g6 {[%clk 0:01:41.1]} 15. h4 {[%clk 0:02:14.5]} 15...
Bg7 {[%clk 0:01:38.8]} 16. f4 {[%clk 0:02:14.7]} 16... h5 {[%clk 0:01:25.4]} 17.
a4 {[%clk 0:02:11.4]} 17... Rf8 {[%clk 0:01:06.1]} 18. a5 {[%clk 0:01:49.5]}
18... f6 {[%clk 0:00:39.9]} 19. exf6 {[%clk 0:01:43.6]} 19... Bxf6 {[%clk
0:00:39.2]} 20. Bxf6+ {[%clk 0:01:41.9]} 20... Rxf6 {[%clk 0:00:38.7]} 21. g3
{[%clk 0:01:40.9]} 21... Nb4 {[%clk 0:00:21.5]} 22. Kd2 {[%clk 0:01:27.1]} 22...
a6 {[%clk 0:00:17.8]} 23. Nc7 {[%clk 0:01:23.4]} 23... Rb8 {[%clk 0:00:17.4]}
24. Be4 {[%clk 0:01:21.8]} 24... b5 {[%clk 0:00:16.8]} 25. c3 {[%clk 0:00:59.7]}
25... Nc6 {[%clk 0:00:10.5]} 26. Bxc6 {[%clk 0:00:48.5]} 26... dxc6 {[%clk
0:00:09.9]} 27. Rhe1 {[%clk 0:00:49]} 27... Kd7 {[%clk 0:00:10]} 28. Rad1 {[%clk
0:00:47.5]} 28... Kxd6 {[%clk 0:00:10]} 29. Ne8+ {[%clk 0:00:47]} 29... Ke7
{[%clk 0:00:10.4]} 30. Nxf6 {[%clk 0:00:47.1]} 30... Kxf6 {[%clk 0:00:11.3]} 31.
Kc2 {[%clk 0:00:41]} 31... c5 {[%clk 0:00:11.5]} 32. Rd8 {[%clk 0:00:38]} 32...
Ra8 {[%clk 0:00:10.5]} 33. Re5 {[%clk 0:00:35.5]} 33... c4 {[%clk 0:00:09.7]}
34. Rc5 {[%clk 0:00:33.4]} 34... Bb7 {[%clk 0:00:09.6]} 35. Rxa8 {[%clk
0:00:32.9]} 35... Bxa8 {[%clk 0:00:10.5]} 36. Kd2 {[%clk 0:00:23.3]} 36... Ke7
{[%clk 0:00:08.6]} 37. Ke3 {[%clk 0:00:19.3]} 37... Kd6 {[%clk 0:00:08.7]} 38.
Rg5 {[%clk 0:00:19.4]} 38... Bc6 {[%clk 0:00:06.3]} 39. Kd4 {[%clk 0:00:19.4]}
39... Be8 {[%clk 0:00:06]} 40. Re5 {[%clk 0:00:18.8]} 40... Bf7 {[%clk
0:00:06.1]} 41. Rc5 {[%clk 0:00:18.2]} 41... Be8 {[%clk 0:00:05.2]} 42. Rc8
{[%clk 0:00:18.3]} 42... Kd7 {[%clk 0:00:01.3]} 43. Ra8 {[%clk 0:00:18.2]} 1-0